bitfinex/quotes_SOLUSD_20241021
["timestamp","ask_amount","ask_price","bid_price","bid_amount"]
[1729528601838,6.1211,163.37,163.24,0.1]
[1729528602043,6.3256,163.39,163.27,43.776884]
[1729528602231,6.1208,163.38,163.27,43.776884]
[1729528603646,6.3256,163.39,163.27,43.776884]
[1729528603942,12.4461,163.39,163.27,43.776884]
[1729528605055,6.3256,163.39,163.27,43.876884]
[1729528607746,6.6559,163.43,163.29,0.1]
[1729528607944,6.36668046,163.45,163.35,6.5044]
[1729528608147,0.1,163.56,163.35,6.5044]
[1729528608148,6.1163,163.5,163.36,43.876884]
[1729528608350,6.6559,163.52,163.36,43.876884]
[1729528608535,6.1167,163.49,163.36,43.876884]
[1729528610851,6.1158,163.51,163.38,0.1]
[1729528611048,6.6559,163.52,163.38,0.1]
[1729528611254,6.1158,163.51,163.38,0.1]
[1729528612155,6.6559,163.52,163.4,0.1]
[1729528612332,12.5443,163.56,163.41,0.1]
[1729528612531,12.5443,163.56,163.42,0.1]
[1729528612732,15.156,163.59,163.44,43.876884]
[1729528613229,6.1134,163.58,163.44,43.876884]
[1729528614043,15.156,163.59,163.44,43.876884]
[1729528614244,21.2689,163.59,163.45,0.1]
[1729528614442,6.1129,163.59,163.46,0.1]
[1729528615043,12.1665,163.6,163.46,0.1]
[1729528616056,6.1137,163.57,163.44,43.876884]
[1729528616237,6.054,163.6,163.44,43.876884]
[1729528616437,6.054,163.6,163.45,0.1]
[1729528616660,6.054,163.6,163.46,0.1]
[1729528616855,6.054,163.6,163.44,43.876884]
[1729528617070,6.1133,163.58,163.45,0.1]
[1729528617364,6.054,163.6,163.46,0.1]
[1729528617662,6.1119,163.62,163.48,0.1]
[1729528617836,21.892,163.64,163.48,0.1]
[1729528618035,6.6024,163.64,163.53,16.4763]
[1729528618235,6.1105,163.66,163.53,16.4763]
[1729528618443,6.1107,163.65,163.53,16.4763]
[1729528618649,6.5043,163.68,163.54,23.876884]
[1729528618847,6.1084,163.71,163.58,23.776884]
[1729528619158,6.1093,163.69,163.59,20.0]
[1729528619551,6.1093,163.69,163.57,20.0]
[1729528620248,6.1088,163.7,163.59,20.0]
[1729528620459,6.5043,163.73,163.6,23.776884]
[1729528620649,6.37061233,163.76,163.65,43.876884]
[1729528620959,0.614464,163.77,163.65,43.876884]
[1729528621457,0.614464,163.77,163.66,0.1]
[1729528621856,0.614464,163.77,163.65,43.876884]
[1729528622161,0.614464,163.77,163.65,43.776884]
[1729528623859,0.614464,163.77,163.65,20.0]
[1729528624069,6.1071,163.75,163.65,20.0]
[1729528624269,6.1077,163.73,163.62,20.0]
[1729528624443,6.108,163.72,163.61,6.0039]
[1729528625741,6.108,163.72,163.62,20.0]
[1729528628064,22.6769,163.76,163.62,20.0]
[1729528628270,6.1087,163.7,163.62,20.0]
[1729528628645,6.1082,163.72,163.62,20.0]
[1729528629252,6.1076,163.73,163.62,20.0]
[1729528629547,6.1081,163.72,163.62,20.0]
[1729528629748,23.776884,163.75,163.62,20.0]
[1729528629964,6.1079,163.73,163.62,20.0]
[1729528630564,6.108,163.72,163.62,20.0]
[1729528631268,23.776884,163.75,163.62,20.0]
[1729528631476,6.1087,163.7,163.61,234.0]
[1729528631665,29.04802303,163.76,163.61,234.0]
[1729528631870,6.108,163.72,163.61,234.0]
[1729528632250,6.108,163.72,163.59,43.776884]
[1729528632460,6.1075,163.74,163.59,43.776884]
[1729528632665,20.0,163.75,163.59,43.776884]
[1729528633145,6.1079,163.73,163.59,43.776884]
[1729528633748,20.0,163.75,163.59,43.776884]
[1729528633962,6.1073,163.74,163.59,43.876884]
[1729528634158,6.1081,163.72,163.59,43.776884]
[1729528635159,29.04802303,163.76,163.59,43.776884]
[1729528635355,6.1077,163.73,163.59,43.776884]
[1729528635571,23.776884,163.73,163.59,43.776884]
[1729528635972,6.1086,163.71,163.59,43.776884]
[1729528636278,6.109,163.7,163.59,43.776884]
[1729528636572,6.1084,163.71,163.59,43.776884]
[1729528637169,6.109,163.7,163.59,43.776884]
[1729528637958,6.109,163.7,163.59,20.0]
[1729528638678,6.1084,163.71,163.59,20.0]
[1729528639077,29.04802303,163.76,163.59,20.0]
[1729528639281,20.0,163.71,163.62,23.776884]
[1729528640076,20.0,163.75,163.62,23.776884]
[1729528640374,29.04802303,163.76,163.61,20.0]
[1729528640375,6.5806,163.76,163.66,23.776884]
[1729528640568,0.614464,163.77,163.67,20.0]
[1729528640766,6.720864,163.77,163.67,20.0]
[1729528642277,0.614464,163.77,163.67,20.0]
[1729528642865,20.614464,163.77,163.67,20.0]
[1729528644357,20.614464,163.77,163.68,23.776884]
[1729528644774,0.614464,163.77,163.68,23.776884]
[1729528644984,20.614464,163.77,163.68,23.776884]
[1729528645771,0.614464,163.77,163.68,23.776884]
[1729528646183,0.614464,163.77,163.7,23.776884]
[1729528646365,0.614464,163.77,163.71,20.0]
[1729528646567,0.614464,163.77,163.72,23.776884]
[1729528647479,0.614464,163.77,163.69,20.0]
[1729528647692,0.614464,163.77,163.71,20.0]
[1729528648698,0.614464,163.77,163.72,23.776884]
[1729528650176,0.614464,163.77,163.71,20.0]
[1729528651275,0.614464,163.77,163.7,23.776884]
[1729528651276,6.1065,163.76,163.68,15.8521]
[1729528651597,0.614464,163.77,163.68,15.8521]
[1729528651888,6.720564,163.77,163.68,15.8521]
[1729528652185,0.614464,163.77,163.68,15.8521]
[1729528652889,0.614464,163.77,163.69,23.776884]
[1729528653471,0.614464,163.77,163.71,23.776884]
[1729528656080,0.614464,163.77,163.73,23.776884]
[1729528656288,0.614464,163.77,163.71,23.776884]
[1729528656289,6.37330951,163.81,163.78,43.776884]
[1729528656586,12.2783,163.93,163.78,43.776884]
[1729528656884,6.1006,163.92,163.78,43.776884]
[1729528657092,12.2782,163.93,163.78,43.776884]
[1729528657473,6.178,163.93,163.81,0.1]
[1729528657982,6.178,163.93,163.79,0.1]
[1729528658291,6.178,163.93,163.79,0.2]
[1729528659193,6.0992,163.96,163.8,0.1]
[1729528659489,6.5033,163.98,163.79,0.1]
[1729528659786,6.714464,163.94,163.79,0.1]
[1729528659985,0.614464,163.94,163.82,0.1]
[1729528660372,0.614464,163.94,163.83,23.776884]
[1729528661075,0.614464,163.94,163.87,23.776884]
[1729528661689,0.614464,163.94,163.89,23.776884]
[1729528663395,0.614464,163.94,163.91,23.776884]
[1729528663895,0.614464,163.94,163.87,22.3651]
[1729528664087,0.614464,163.94,163.88,43.776884]
[1729528664802,0.614464,163.94,163.83,6.0387]
[1729528666398,0.614464,163.94,163.83,3.73507907]
[1729528666609,0.614464,163.94,163.82,21.4386]
[1729528667695,0.614464,163.94,163.85,20.0]
[1729528667905,0.614464,163.94,163.84,23.776884]
[1729528668102,0.614464,163.94,163.86,23.776884]
[1729528671489,6.714364,163.94,163.83,20.0]
[1729528671698,6.1009,163.91,163.78,21.7079]
[1729528671997,27.9325,163.93,163.78,21.8079]
[1729528672525,6.1005,163.92,163.78,21.7079]
[1729528672693,20.0,163.9,163.78,25.50291113]
[1729528673014,20.0,163.9,163.79,23.776884]
[1729528675295,20.0,163.92,163.75,20.0]
[1729528675524,20.0,163.92,163.75,3.74695068]
[1729528675525,6.1023,163.88,163.75,3.74695068]
[1729528675812,6.1023,163.88,163.74,29.45603657]
[1729528676396,6.1023,163.88,163.74,29.35603657]
[1729528676698,6.1023,163.88,163.76,20.0]
[1729528676901,6.1023,163.88,163.77,23.776884]
[1729528678204,6.1015,163.9,163.77,23.776884]
[1729528678911,20.0,163.89,163.77,23.776884]
[1729528679110,26.1017,163.89,163.77,23.776884]
[1729528680806,20.0,163.9,163.77,23.776884]
[1729528681120,6.101,163.91,163.79,23.776884]
[1729528683037,6.1024,163.87,163.74,33.00868311]
[1729528683222,43.776884,163.92,163.74,33.00868311]
[1729528683223,6.1021,163.88,163.75,20.0]
[1729528683599,20.0,163.88,163.75,20.0]
[1729528683806,6.1017,163.89,163.75,20.0]
[1729528684518,6.1017,163.89,163.77,20.0]
[1729528684823,6.1017,163.89,163.78,23.776884]
[1729528685916,43.776884,163.92,163.76,23.776884]
[1729528685917,43.976884,163.92,163.76,23.776884]
[1729528686420,6.1029,163.86,163.76,23.776884]
[1729528686914,6.1022,163.88,163.76,23.776884]
[1729528687099,20.0,163.87,163.76,23.776884]
[1729528688024,6.1026,163.87,163.76,23.776884]
[1729528690621,6.102,163.88,163.76,23.776884]
[1729528690828,26.1026,163.87,163.76,23.776884]
[1729528692014,20.0,163.87,163.76,23.776884]
[1729528692215,26.1027,163.87,163.76,23.776884]
[1729528693128,6.103,163.86,163.76,23.776884]
[1729528693415,6.1037,163.84,163.74,21.7759]
[1729528693622,12.1423,163.85,163.74,21.7759]
[1729528695804,6.0391,163.85,163.74,21.7759]
[1729528696427,12.1422,163.85,163.74,21.7759]
[1729528701626,26.1021,163.88,163.75,23.776884]
[1729528702838,20.0,163.86,163.75,23.776884]
[1729528703525,6.1028,163.86,163.75,23.776884]
[1729528705314,6.1033,163.85,163.75,23.776884]
[1729528705526,6.1028,163.86,163.75,23.776884]
[1729528706827,20.0,163.86,163.75,23.776884]
[1729528711426,20.0,163.88,163.75,23.776884]
[1729528711615,6.2097,163.89,163.78,20.0]
[1729528711944,6.1006,163.92,163.79,23.776884]
[1729528712240,6.1008,163.92,163.79,23.776884]
[1729528712746,6.1005,163.92,163.79,23.776884]
[1729528712919,6.101,163.91,163.79,23.776884]
[1729528713120,6.1007,163.92,163.79,23.776884]
[1729528713935,7.239164,163.94,163.79,23.776884]
[1729528714214,6.1009,163.91,163.79,23.776884]
[1729528714530,20.0,163.91,163.79,23.776884]
[1729528715123,6.1009,163.91,163.79,23.776884]
[1729528715822,6.1009,163.91,163.81,23.776884]
[1729528716424,20.0,163.9,163.77,20.0]
[1729528716652,6.1022,163.88,163.75,20.0]
[1729528716828,20.0,163.9,163.75,20.0]
[1729528717017,6.1027,163.87,163.75,20.0]
[1729528717941,23.776884,163.89,163.75,20.0]
[1729528718143,6.1027,163.86,163.75,20.0]
[1729528718441,6.1027,163.86,163.77,20.0]
[1729528719344,20.0,163.9,163.8,23.776884]
[1729528719546,6.1024,163.87,163.79,20.0]
[1729528719837,6.1024,163.87,163.76,23.776884]
[1729528720043,6.1026,163.87,163.77,20.0]
[1729528724033,6.1021,163.88,163.77,20.0]
[1729528725243,15.2532,163.9,163.77,20.0]
[1729528725244,6.1024,163.87,163.77,20.0]
[1729528725945,23.776884,163.91,163.78,23.776884]
[1729528726245,6.102,163.88,163.78,23.776884]
[1729528728851,20.0,163.9,163.78,23.776884]
[1729528729030,20.0,163.88,163.78,23.776884]
[1729528729638,20.0,163.9,163.78,23.776884]
[1729528729846,6.102,163.88,163.78,23.776884]
[1729528731953,6.102,163.88,163.77,20.0]
[1729528731954,6.1027,163.86,163.77,20.0]
[1729528732248,6.1027,163.87,163.77,20.0]
[1729528732554,6.1021,163.88,163.75,20.0]
[1729528733131,6.1017,163.89,163.75,20.0]
[1729528733453,6.1016,163.89,163.78,23.776884]
[1729528733645,6.1016,163.89,163.77,23.776884]
[1729528733951,6.1016,163.89,163.78,20.0]
[1729528734141,20.0,163.9,163.78,20.0]
[1729528734346,20.0,163.89,163.79,23.776884]
[1729528735934,6.1021,163.88,163.78,23.776884]
[1729528739329,43.776884,163.91,163.78,23.776884]
[1729528739652,6.1016,163.89,163.78,23.776884]
[1729528740471,6.102,163.88,163.78,23.776884]
[1729528743955,43.776884,163.91,163.78,23.776884]
[1729528744138,6.1018,163.89,163.78,23.776884]
[1729528744337,43.776884,163.91,163.78,23.776884]
[1729528744651,6.102,163.88,163.78,23.776884]
[1729528746155,6.102,163.88,163.77,20.0]
[1729528747951,6.102,163.88,163.71,0.1]
[1729528747952,6.1054,163.79,163.7,23.27692342]
[1729528748159,23.776884,163.8,163.7,15.9492]
[1729528748340,6.106,163.78,163.7,15.9492]
[1729528748540,6.1061,163.77,163.7,15.9492]
[1729528748858,43.776884,163.75,163.64,7.58013657]
[1729528749062,43.776884,163.75,163.61,22.2148]
[1729528749063,6.108,163.72,163.61,22.2148]
[1729528749553,6.109,163.7,163.61,15.9492]
[1729528749859,43.776884,163.73,163.61,15.9492]
[1729528750152,20.0,163.75,163.62,7.58013657]
[1729528750452,30.0,163.76,163.63,6.2656]
[1729528750657,30.0,163.76,163.64,7.58013657]
[1729528750836,16.043,163.83,163.64,7.58013657]
[1729528750837,22.1629,163.83,163.67,23.776884]
[1729528751040,28.2668,163.83,163.7,20.0]
[1729528751237,22.1629,163.83,163.72,6.1914]
[1729528751560,22.1629,163.83,163.72,13.77153657]
[1729528754762,22.1629,163.83,163.72,6.1914]
[1729528755452,28.2668,163.83,163.72,6.1914]
[1729528756760,6.38358268,163.88,163.73,67.78322057]
[1729528757063,6.1034,163.85,163.73,60.203084]
[1729528757247,6.1035,163.84,163.73,60.203084]
[1729528758364,6.105,163.8,163.68,22.5459]
[1729528758544,6.1064,163.77,163.68,16.4262]
[1729528758852,6.1066,163.76,163.64,21.8367]
[1729528759541,59.038884,163.81,163.64,21.8367]
[1729528759777,6.1063,163.77,163.64,21.8367]
[1729528760073,6.105,163.8,163.65,23.776884]
[1729528760357,23.776884,163.76,163.64,21.8367]
[1729528760561,6.1074,163.74,163.64,21.8367]
[1729528761453,6.1076,163.74,163.64,15.5988]
[1729528762040,30.0,163.73,163.64,15.5988]
[1729528762675,30.0,163.73,163.65,23.776884]
[1729528762963,30.0,163.73,163.65,31.35702057]
[1729528763264,30.0,163.73,163.65,30.35702057]
[1729528763663,26.1062,163.77,163.65,30.35702057]
[1729528764863,6.1065,163.76,163.65,22.776884]
[1729528768274,20.0,163.76,163.65,22.776884]
[1729528769048,21.63522358,163.81,163.68,20.0]
[1729528769049,6.1052,163.8,163.68,20.0]
[1729528769247,6.1046,163.81,163.7,20.0]
[1729528769459,12.5086,163.82,163.71,23.776884]
[1729528769660,6.4043,163.82,163.71,23.776884]
[1729528770066,16.1706,163.84,163.73,39.067284]
[1729528770250,6.1041,163.83,163.73,15.2904]
[1729528770450,6.105,163.8,163.7,43.776884]
[1729528771463,6.1047,163.81,163.7,43.776884]
[1729528774657,16.1706,163.84,163.7,43.776884]
[1729528774850,6.1036,163.84,163.72,20.0]
[1729528775251,6.1036,163.84,163.73,23.776884]
[1729528776677,6.1039,163.83,163.73,23.776884]
[1729528777347,6.4373,163.86,163.73,23.776884]
[1729528777563,6.4373,163.86,163.76,20.0]
[1729528777775,6.1024,163.87,163.77,39.742184]
[1729528778664,6.1024,163.87,163.77,46.296884]
[1729528778851,20.0,163.87,163.77,46.296884]
[1729528779261,21.8235,163.88,163.77,46.296884]
[1729528779567,0.714464,163.94,163.79,23.776884]
[1729528779568,7.273464,163.94,163.79,23.776884]
[1729528779776,6.1003,163.93,163.81,23.776884]
[1729528780066,6.1003,163.93,163.83,23.776884]
[1729528780463,7.273464,163.94,163.83,23.776884]
[1729528780666,6.1005,163.92,163.83,23.776884]
[1729528781056,6.1019,163.89,163.8,7.58013657]
[1729528781252,6.1019,163.89,163.78,43.776884]
[1729528781481,6.1013,163.9,163.78,43.776884]
[1729528781978,26.1001,163.93,163.78,43.776884]
[1729528782181,6.1005,163.92,163.78,51.35702057]
[1729528783255,6.1013,163.9,163.78,51.35702057]
[1729528783461,6.1013,163.9,163.78,43.776884]
[1729528783664,6.1015,163.9,163.78,43.776884]
[1729528784159,6.1016,163.89,163.78,43.776884]
[1729528784489,23.776884,163.9,163.78,20.0]
[1729528784779,6.1028,163.86,163.77,22.52]
[1729528785158,6.1025,163.87,163.77,22.52]
[1729528786075,6.1014,163.9,163.79,20.0]
[1729528786253,43.776884,163.93,163.8,23.776884]
[1729528786459,20.0,163.9,163.8,23.776884]
[1729528787470,20.0,163.9,163.77,22.52]
[1729528787471,6.1008,163.92,163.82,23.776884]
[1729528787961,13.373464,163.94,163.84,23.776884]
[1729528788375,6.1002,163.93,163.84,23.776884]
[1729528791283,6.1018,163.89,163.78,20.0]
[1729528791589,6.1018,163.89,163.77,26.15390213]
[1729528791887,6.1014,163.9,163.77,26.15390213]
[1729528792291,0.614464,163.94,163.78,23.25173657]
[1729528792477,6.1015,163.9,163.79,23.776884]
[1729528792667,6.1015,163.9,163.8,20.0]
[1729528792972,6.1015,163.9,163.82,20.0]
[1729528793473,6.1015,163.9,163.8,20.0]
[1729528793679,6.101,163.91,163.81,23.776884]
[1729528793978,6.101,163.91,163.82,20.0]
[1729528795763,6.1026,163.87,163.78,15.6716]
[1729528795984,20.0,163.92,163.78,15.6716]
[1729528796186,6.1021,163.88,163.78,15.6716]
[1729528796581,15.2522,163.91,163.78,15.6716]
[1729528796582,6.1017,163.89,163.78,15.6716]
[1729528797280,6.1011,163.91,163.79,43.776884]
[1729528797467,20.0,163.92,163.79,43.776884]
[1729528797874,6.1009,163.91,163.79,43.776884]
[1729528798078,26.1006,163.92,163.79,43.776884]
[1729528798281,6.1009,163.91,163.79,43.776884]
[1729528798572,6.1006,163.92,163.79,43.776884]
[1729528799779,6.1017,163.89,163.79,43.776884]
[1729528799981,20.0,163.91,163.78,15.6716]
[1729528800193,20.0,163.89,163.78,15.6716]
[1729528800888,6.1012,163.91,163.79,20.0]
[1729528801289,6.1006,163.92,163.81,20.0]
[1729528801674,20.0,163.93,163.82,23.776884]
[1729528802075,6.102,163.89,163.79,20.0]
[1729528802405,6.102,163.89,163.78,15.6716]
[1729528802406,23.776884,163.88,163.78,15.6716]
[1729528802600,20.0,163.87,163.78,15.6716]
[1729528802806,6.1031,163.86,163.78,15.6716]
[1729528803115,26.1025,163.87,163.78,15.6716]
[1729528803274,20.0,163.87,163.74,15.9687]
[1729528803473,6.103,163.86,163.74,15.9687]
[1729528803679,6.103,163.86,163.75,43.776884]
[1729528804589,6.1024,163.87,163.75,43.776884]
[1729528805604,6.1021,163.88,163.75,43.776884]
[1729528805802,6.3671888,163.92,163.75,43.876884]
[1729528805994,6.1004,163.93,163.78,22.1917]
[1729528806196,6.1004,163.93,163.79,43.776884]
[1729528806499,29.702964,163.94,163.79,43.776884]
[1729528806799,6.1009,163.91,163.79,43.776884]
[1729528807004,6.1006,163.92,163.79,43.776884]
[1729528809498,6.1006,163.92,163.79,47.41814654]
[1729528809681,6.1004,163.93,163.79,47.41814654]
[1729528810378,23.776884,163.93,163.79,47.41814654]
[1729528810631,23.776884,163.93,163.78,22.1917]
[1729528810632,6.1023,163.88,163.78,22.1917]
[1729528811601,20.0,163.92,163.78,16.0448]
[1729528811803,20.0,163.89,163.78,16.0448]
[1729528811976,23.776884,163.88,163.78,16.0448]
[1729528812180,6.1028,163.86,163.78,16.0448]
[1729528812579,6.1023,163.88,163.78,16.0448]
[1729528812785,20.0,163.89,163.78,16.0448]
[1729528812991,20.0,163.88,163.78,16.0448]
[1729528813399,6.1017,163.89,163.78,16.0448]
[1729528813719,6.1012,163.91,163.8,20.0]
[1729528813896,6.1013,163.9,163.8,20.0]
[1729528815313,20.0,163.92,163.8,20.0]
[1729528816619,6.1013,163.9,163.8,20.0]
[1729528825634,6.101,163.91,163.81,23.776884]
[1729528826329,26.1008,163.92,163.81,23.776884]
[1729528826500,6.1009,163.91,163.81,23.776884]
[1729528826698,6.1009,163.91,163.82,20.0]
[1729528828014,20.0,163.93,163.83,23.776884]
[1729528828217,29.703064,163.94,163.85,23.776884]
[1729528828526,6.1001,163.93,163.85,23.776884]
[1729528829020,23.603164,163.94,163.82,6.638]
[1729528829228,23.603164,163.94,163.79,3.71546435]
[1729528829229,4.53082365,163.93,163.79,23.71546435]
[1729528829443,6.1012,163.91,163.8,23.776884]
[1729528833010,6.1021,163.88,163.79,20.0]
[1729528833330,23.776884,163.9,163.78,16.0448]
[1729528833540,6.103,163.86,163.78,16.0448]
[1729528833908,23.776884,163.9,163.78,16.0448]
[1729528834108,6.1032,163.85,163.78,16.0448]
[1729528834432,15.2543,163.89,163.73,16.4332]
[1729528834433,6.1045,163.82,163.73,16.4332]
[1729528834727,16.0939,163.86,163.73,16.4332]
[1729528835106,6.1019,163.89,163.74,7.58013657]
[1729528835310,6.1019,163.89,163.75,6.2536]
[1729528835628,6.1019,163.89,163.76,43.776884]
[1729528835829,39.281284,163.9,163.76,43.776884]
[1729528836032,6.102,163.88,163.76,43.776884]
[1729528836240,6.1017,163.89,163.76,43.776884]
[1729528836611,6.102,163.88,163.76,43.776884]
[1729528836917,15.5044,163.9,163.76,51.35702057]
[1729528837116,12.4652,163.91,163.78,43.776884]
[1729528838627,6.1014,163.9,163.78,43.776884]
[1729528839531,6.3643,163.91,163.78,43.776884]
[1729528839532,12.4652,163.91,163.78,43.776884]
[1729528839832,6.1023,163.88,163.78,23.776884]
[1729528844545,6.1032,163.85,163.77,15.8894]
[1729528844841,16.4228,163.87,163.77,15.8894]
[1729528845020,6.103,163.86,163.77,15.8894]
[1729528845437,6.1031,163.85,163.77,15.8894]
[1729528846449,16.4228,163.87,163.77,15.8894]
[1729528847148,16.4228,163.87,163.78,23.776884]
[1729528847441,6.1017,163.89,163.78,23.776884]
[1729528847645,20.0,163.9,163.78,23.776884]
[1729528847821,26.1013,163.9,163.78,23.776884]
[1729528848244,26.1014,163.9,163.78,23.776884]
[1729528850452,20.0,163.9,163.78,23.776884]
[1729528850943,6.1016,163.89,163.78,23.776884]
[1729528856146,6.1021,163.88,163.78,23.776884]
[1729528857726,20.0,163.9,163.77,15.8894]
[1729528857949,20.0,163.88,163.77,15.8894]
[1729528858457,6.1028,163.86,163.77,15.8894]
[1729528858825,20.0,163.88,163.77,15.8894]
[1729528859027,6.1026,163.87,163.77,15.8894]
[1729528860455,26.1022,163.88,163.78,23.776884]
[1729528862140,26.1022,163.88,163.77,15.8894]
[1729528862141,6.1028,163.86,163.77,15.8894]
[1729528862341,6.1025,163.87,163.77,15.8894]
[1729528862760,23.776884,163.89,163.77,15.8894]
[1729528863067,6.1032,163.85,163.77,15.8894]
[1729528863262,26.1031,163.85,163.74,23.776884]
[1729528863459,6.1041,163.83,163.74,23.776884]
[1729528864236,6.1036,163.84,163.74,23.776884]
[1729528864938,28.32046062,163.91,163.75,20.0]
[1729528865137,6.1016,163.89,163.79,20.0]
[1729528865336,6.1016,163.89,163.79,27.58013657]
[1729528865540,21.9407,163.91,163.79,27.58013657]
[1729528865541,21.9407,163.91,163.8,23.776884]
[1729528865756,21.9407,163.91,163.82,23.776884]
[1729528866055,6.714364,163.94,163.84,23.776884]
[1729528866254,30.0,163.85,163.84,43.776884]
[1729528866658,0.614464,163.94,163.85,20.0]
[1729528867252,6.714464,163.94,163.85,20.0]
[1729528868666,6.714464,163.94,163.84,23.776884]
[1729528868967,6.1009,163.91,163.81,20.0]
[1729528869972,0.614464,163.94,163.81,27.58013657]
[1729528870264,0.614464,163.94,163.84,23.776884]
[1729528870464,6.714264,163.94,163.85,20.0]
[1729528872943,20.614464,163.94,163.83,20.0]
[1729528873158,23.776884,163.93,163.81,23.776884]
[1729528873357,26.714264,163.94,163.81,31.35702057]
[1729528873578,26.714264,163.94,163.83,23.776884]
[1729528874244,26.714264,163.94,163.84,20.0]
[1729528876061,6.1005,163.93,163.83,20.0]
[1729528876368,6.1006,163.92,163.83,20.0]
[1729528877065,6.1002,163.93,163.83,20.0]
[1729528879167,26.714264,163.94,163.85,20.0]
[1729528881062,20.614464,163.94,163.85,20.0]
[1729528881447,0.614464,163.94,163.85,20.0]
[1729528881647,0.614464,163.94,163.88,23.776884]
[1729528882865,0.614464,163.94,163.89,20.0]
[1729528884154,0.614464,163.94,163.9,23.776884]
[1729528884471,0.614464,163.94,163.88,23.776884]
[1729528884472,0.614464,163.94,163.92,23.776884]
[1729528885369,0.614464,163.94,163.93,43.776884]
[1729528885750,16.4237,164.04,163.95,20.0]
[1729528889779,16.4237,164.04,163.96,23.776884]
[1729528890470,20.0,164.05,163.96,23.776884]
[1729528890888,12.4265,164.06,163.95,20.0]
[1729528891364,12.4265,164.06,163.97,20.0]
[1729528891984,6.3311,164.06,163.97,20.0]
[1729528892184,6.3311,164.06,163.98,23.776884]
[1729528893885,6.0949,164.07,163.98,23.776884]
[1729528894084,20.0,164.07,163.98,30.302784]
[1729528894784,20.0,164.07,163.97,20.0]
[1729528894973,6.0953,164.06,163.98,20.0]
[1729528895174,20.0,164.07,163.98,20.0]
[1729528895380,26.0951,164.07,163.98,20.0]
[1729528896272,20.0,164.07,163.98,20.0]
[1729528896589,26.0949,164.07,163.98,20.0]
[1729528897997,20.0,164.07,163.98,20.0]
[1729528898371,6.0959,164.05,163.96,43.776884]
[1729528898566,20.0,164.07,163.96,43.776884]
[1729528898798,20.0,164.07,163.93,22.68683657]
[1729528898799,6.0971,164.02,163.94,20.0]
[1729528899481,6.0971,164.02,163.93,15.1067]
[1729528900793,6.0971,164.02,163.94,20.0]
[1729528901185,6.096,164.04,163.95,23.776884]
[1729528901490,6.503,164.05,163.96,20.0]
[1729528901807,12.5989,164.05,163.96,20.0]
[1729528902673,6.503,164.05,163.96,20.0]
[1729528905281,26.0949,164.07,163.98,20.0]
[1729528905689,26.0949,164.07,163.96,20.0]
[1729528905896,16.4993,164.08,163.98,20.0]
[1729528906194,22.5939,164.08,163.98,20.0]
[1729528906409,15.9922,164.12,164.0,23.776884]
[1729528906695,6.707964,164.11,164.0,43.776884]
[1729528906898,0.614464,164.11,164.0,20.0]
[1729528907478,6.0946,164.08,164.0,20.0]
[1729528907678,6.0957,164.05,163.96,7.58013657]
[1729528907897,6.0957,164.05,163.96,20.0]